fUST/lending_fUST_20250921
["ID","MTS","AMOUNT","RATE_DAILY","PERIOD"]
[386655277,1758451852045,-519.16,0.00020547,2]
[386655279,1758451852058,-1102.68,0.00020547,2]
[386655281,1758451852067,-480.0,0.00020547,2]
[386655283,1758451852076,-480.0,0.00020547,2]
[386655285,1758451852085,-650.16,0.00020547,2]
[386655287,1758451852095,-864.96,0.00020547,2]
[386655289,1758451852105,-611.3,0.00020547,2]
[386655291,1758451852114,-498.23435756,0.00020547,2]
[386655293,1758451852123,-480.0,0.00020547,2]
[386655294,1758451852132,-480.0,0.00020547,2]
[386655295,1758451852141,-480.0,0.00020547,2]
[386655296,1758451852152,-480.0,0.00020547,2]
[386655297,1758451852161,-480.0,0.00020547,2]
[386655298,1758451852171,-1211.94,0.00020547,2]
[386655299,1758451852181,-480.0,0.00020547,2]
[386655300,1758451852190,-431.62687345,0.00020548,2]
[386655301,1758451852200,-1500.0,0.00020568,2]
[386655302,1758451852209,-971.5733539,0.00020568,2]
[386655303,1758451852219,-280.08156896,0.00020568,2]
[386655304,1758451852228,-1500.0,0.00020568,2]
[386655305,1758451852237,-279.973145,0.00020568,2]
[386655306,1758451852247,-1500.0,0.00020568,2]
[386655307,1758451852256,-1500.0,0.00020568,2]
[386655308,1758451852265,-160.0,0.00020574,2]
[386655309,1758451852275,-160.0,0.00020576,2]
[386655310,1758451852284,-160.0,0.00020576,2]
[386655311,1758451852296,-160.0,0.00020576,2]
[386655312,1758451852305,-160.0,0.00020576,2]
[386655313,1758451852314,-233.52200025,0.00020576,2]
[386655314,1758451852323,-848.42763433,0.00020576,2]
[386655315,1758451852332,-160.0,0.00020576,2]
[386655316,1758451852341,-160.0,0.00020576,2]
[386655317,1758451852350,-160.0,0.00020576,2]
[386655318,1758451852360,-151.0,0.000207,3]
[386655319,1758451852369,-1300.0,0.00020712,2]
[386655320,1758451852378,-601.56640286,0.00020775,2]
[386655321,1758451852387,-217.63994139,0.00020775,2]
[386655322,1758451852397,-240.0,0.00020792,2]
[386655323,1758451852406,-420.0,0.00020792,2]
[386655324,1758451852415,-240.0,0.00020792,2]
[386655325,1758451852425,-158.56978987,0.000208,2]
[386655326,1758451852434,-329.49260123,0.00020816,2]
[386655327,1758451852443,-2000.0,0.00020816,2]
[386655328,1758451852452,-480.0,0.00020821,2]
[386655329,1758451852461,-480.0,0.00020821,2]
[386655330,1758451852470,-480.0,0.00020821,2]
[386655331,1758451852479,-480.0,0.00020821,2]
[386655332,1758451852488,-480.0,0.00020821,2]
[386655333,1758451852497,-480.0,0.00020821,2]
[386655334,1758451852506,-480.0,0.00020821,2]
[386655335,1758451852516,-480.0,0.00020821,2]
[386655336,1758451852525,-480.0,0.00020821,2]
[386655337,1758451852534,-480.0,0.00020821,2]
[386655338,1758451852543,-480.0,0.00020821,2]
[386655339,1758451852552,-480.0,0.00020821,2]
[386655340,1758451852561,-480.0,0.00020821,2]
[386655341,1758451852570,-480.0,0.00020821,2]
[386655342,1758451852579,-480.0,0.00020821,2]
[386655343,1758451852588,-480.0,0.00020821,2]
[386655344,1758451852597,-480.0,0.00020821,2]
[386655345,1758451852606,-480.0,0.00020821,2]
[386655346,1758451852615,-480.0,0.00020821,2]
[386655347,1758451852623,-480.0,0.00020821,2]
[386655348,1758451852632,-480.0,0.00020821,2]
[386655349,1758451852642,-480.0,0.00020821,2]
[386655350,1758451852652,-480.0,0.00020821,2]
[386655351,1758451852661,-861.84,0.00020821,2]
[386655352,1758451852671,-935.99,0.00020821,2]
[386655353,1758451852679,-480.0,0.00020821,2]
[386655354,1758451852689,-480.0,0.00020821,2]
[386655355,1758451852698,-530.57,0.00020821,2]
[386655356,1758451852708,-480.0,0.00020821,2]
[386655357,1758451852717,-1522.15,0.00020821,2]
[386655358,1758451852726,-480.0,0.00020821,2]
[386655359,1758451852735,-480.0,0.00020821,2]
[386655360,1758451852744,-480.0,0.00020821,2]
[386655361,1758451852753,-1988.96,0.00020821,2]
[386655362,1758451852762,-480.0,0.00020821,2]
[386655363,1758451852771,-480.0,0.00020821,2]
[386655364,1758451852780,-500.56870023,0.00020821,2]
[386655365,1758451852790,-480.0,0.00020821,2]
[386655366,1758451852799,-480.0,0.00020821,2]
[386655367,1758451852808,-557.88,0.00020821,2]
[386655368,1758451852817,-1814.27,0.00020821,2]
[386655369,1758451852827,-357.24425744,0.00020821,2]
[386655371,1758451852837,-480.0,0.00020821,2]
[386655373,1758451852846,-480.0,0.00020821,2]
[386655375,1758451852855,-852.0,0.00020821,2]
[386655376,1758451852864,-2934.94,0.00020821,2]
[386655377,1758451852874,-877.9,0.00020821,2]
[386655378,1758451852883,-480.0,0.00020821,2]
[386655379,1758451852893,-886.63,0.00020821,2]
[386655380,1758451852902,-480.0,0.00020821,2]
[386655381,1758451852911,-480.0,0.00020821,2]
[386655382,1758451852921,-1154.68,0.00020821,2]
[386655384,1758451852930,-480.0,0.00020821,2]
[386655386,1758451852939,-480.0,0.00020821,2]
[386655388,1758451852948,-480.0,0.00020821,2]
[386655390,1758451852957,-480.0,0.00020821,2]
[386655392,1758451852967,-480.0,0.00020821,2]
[386655393,1758451852976,-501.39005476,0.00020821,2]
[386655394,1758451852985,-480.0,0.00020821,2]
[386655396,1758451852995,-480.0,0.00020821,2]
[386655397,1758451853004,-505.46915603,0.00020821,2]
[386655398,1758451853014,-480.0,0.00020821,2]
[386655399,1758451853023,-10502.96,0.00020821,2]
[386655400,1758451853032,-586.27,0.00020821,2]
[386655401,1758451853042,-517.89772216,0.00020821,2]
[386655402,1758451853051,-768.24,0.00020821,2]
[386655403,1758451853060,-480.0,0.00020821,2]
[386655404,1758451853070,-987.82,0.00020821,2]
[386655405,1758451853079,-480.0,0.00020821,2]
[386655406,1758451853088,-480.0,0.00020821,2]
[386655407,1758451853097,-480.0,0.00020821,2]
[386655408,1758451853106,-480.0,0.00020821,2]
[386655409,1758451853115,-530.61,0.00020821,2]
[386655410,1758451853125,-480.0,0.00020821,2]
[386655411,1758451853135,-1896.42,0.00020821,2]
[386655412,1758451853145,-480.0,0.00020821,2]
[386655413,1758451853154,-480.0,0.00020821,2]
[386655414,1758451853164,-480.0,0.00020821,2]
[386655415,1758451853173,-480.0,0.00020821,2]
[386655416,1758451853183,-480.0,0.00020821,2]
[386655417,1758451853192,-480.0,0.00020821,2]
[386655418,1758451853201,-970.28,0.00020821,2]
[386655419,1758451853211,-480.0,0.00020821,2]
[386655420,1758451853220,-519.16,0.00020821,2]
[386655421,1758451853230,-1102.68,0.00020821,2]
[386655422,1758451853240,-480.0,0.00020821,2]
[386655423,1758451853250,-480.0,0.00020821,2]
[386655424,1758451853259,-650.16,0.00020821,2]
[386655425,1758451853268,-864.96,0.00020821,2]
[386655426,1758451853278,-480.0,0.00020821,2]
[386655427,1758451853287,-480.0,0.00020821,2]
[386655428,1758451853296,-565.65795806,0.00020821,2]
[386655429,1758451853306,-480.0,0.00020821,2]
[386655430,1758451853315,-480.0,0.00020821,2]
[386655431,1758451853324,-1211.94,0.00020821,2]
[386655432,1758451853334,-480.0,0.00020821,2]
[386655433,1758451853344,-500.0,0.00020825,2]
[386655434,1758451853353,-500.0,0.00020825,2]
[386655435,1758451853362,-500.0,0.00020825,2]
[386655436,1758451853372,-500.0,0.00020825,2]
[386655437,1758451853381,-500.0,0.00020825,2]
[386655438,1758451853390,-500.0,0.00020828,2]
[386655439,1758451853400,-500.0,0.00020828,2]
[386655440,1758451853410,-500.0,0.00020828,2]
[386655441,1758451853419,-503.37110723,0.00020828,2]
[386655442,1758451853428,-500.0,0.00020828,2]
[386655443,1758451853437,-500.0,0.00020828,2]
[386655444,1758451853447,-500.0,0.00020828,2]
[386655445,1758451853456,-500.0,0.00020828,2]
[386655446,1758451853466,-500.0,0.00020828,2]
[386655447,1758451853476,-500.0,0.00020828,2]
[386655448,1758451853485,-500.0,0.00020828,2]
[386655449,1758451853495,-500.0,0.00020828,2]
[386655450,1758451853504,-500.0,0.00020828,2]
[386655451,1758451853514,-500.0,0.00020828,2]
[386655452,1758451853523,-500.0,0.00020828,2]
[386655453,1758451853533,-500.0,0.00020828,2]
[386655454,1758451853542,-508.0887507,0.00020828,2]
[386655455,1758451853551,-500.0,0.00020828,2]
[386655456,1758451853561,-500.0,0.00020828,2]
[386655457,1758451853571,-500.0,0.00020828,2]
[386655458,1758451853580,-500.0,0.00020829,2]
[386655459,1758451853590,-500.0,0.00020829,2]
[386655460,1758451853599,-500.0,0.00020829,2]
[386655461,1758451853609,-500.0,0.00020835,2]
[386655462,1758451853619,-500.0,0.00020835,2]
[386655463,1758451853628,-500.0,0.00020835,2]
[386655464,1758451853640,-500.0,0.00020835,2]
[386655465,1758451853650,-500.0,0.00020835,2]
[386655466,1758451853660,-500.0,0.00020836,2]
[386655467,1758451853670,-500.0,0.00020836,2]
[386655468,1758451853681,-500.0,0.00020836,2]
[386655469,1758451853691,-500.0,0.00020836,2]
[386655470,1758451853700,-188.9144809,0.00020845,2]
[386655471,1758451853710,-160.0,0.00020887,2]
[386655472,1758451853721,-1200.0,0.00020893,2]
[386655473,1758451853731,-2318.4204529,0.00020899,2]
[386655474,1758451853740,-151.0,0.000209,3]
[386655475,1758451853749,-12719.39472188,0.00020972,2]
[386655476,1758451853759,-260.0,0.00020977,2]
[386655477,1758451853769,-500.0,0.00021,2]
[386655478,1758451853778,-500.0,0.00021,2]
[386655479,1758451853788,-151.59304801,0.00021,2]
[386655480,1758451853797,-152.46397795,0.00021,2]
[386655481,1758451853807,-500.0,0.00021,2]
[386655482,1758451853816,-164.02275765,0.00021,2]
[386655483,1758451853825,-151.23117892,0.00021,2]
[386655484,1758451853834,-151.46922687,0.00021,2]
[386655485,1758451853844,-196.86888496,0.00021,2]
[386655486,1758451853853,-157.76318649,0.00021,2]
[386655487,1758451853863,-483.55149234,0.00021095,2]
[386655488,1758451853872,-560.08372906,0.00021095,2]
[386655489,1758451853882,-480.0,0.00021095,2]
[386655490,1758451853891,-480.0,0.00021095,2]
[386655491,1758451853901,-480.0,0.00021095,2]
[386655492,1758451853910,-388.93709765,0.00021095,2]
[386655493,1758451853920,-480.0,0.00021095,2]
[386655494,1758451853930,-480.0,0.00021095,2]
[386655495,1758451853939,-480.0,0.00021095,2]
[386655496,1758451853948,-480.0,0.00021095,2]
[386655497,1758451853958,-480.0,0.00021095,2]
[386655498,1758451853967,-443.75269614,0.00021095,2]
[386655499,1758451853976,-480.0,0.00021095,2]
[386655500,1758451853986,-480.0,0.00021095,2]
[386655501,1758451853996,-480.0,0.00021095,2]
[386655502,1758451854005,-480.0,0.00021095,2]
[386655503,1758451854015,-555.81649541,0.00021095,2]
[386655504,1758451854024,-480.0,0.00021095,2]
[386655505,1758451854034,-480.0,0.00021095,2]
[386655506,1758451854045,-480.0,0.00021095,2]
[386655507,1758451854058,-480.0,0.00021095,2]
[386655508,1758451854067,-480.0,0.00021095,2]
[386655509,1758451854077,-451.59394837,0.00021095,2]
[386655510,1758451854087,-861.84,0.00021095,2]
[386655511,1758451854098,-935.99,0.00021095,2]
[386655512,1758451854108,-480.0,0.00021095,2]
[386655513,1758451854117,-530.57,0.00021095,2]
[386655514,1758451854127,-480.0,0.00021095,2]
[386655515,1758451854137,-1522.15,0.00021095,2]
[386655516,1758451854148,-480.0,0.00021095,2]
[386655517,1758451854157,-480.0,0.00021095,2]
[386655518,1758451854167,-178.34176478,0.00021095,2]
[386655519,1758451854176,-1988.96,0.00021095,2]
[386655520,1758451854186,-480.0,0.00021095,2]
[386655521,1758451854195,-492.57521216,0.00021095,2]
[386655522,1758451854204,-480.0,0.00021095,2]
[386655523,1758451854213,-480.0,0.00021095,2]
[386655524,1758451854223,-557.88,0.00021095,2]
[386655525,1758451854233,-1814.27,0.00021095,2]
[386655526,1758451854243,-480.0,0.00021095,2]
[386655527,1758451854253,-480.0,0.00021095,2]
[386655528,1758451854263,-852.0,0.00021095,2]
[386655529,1758451854272,-2934.94,0.00021095,2]
[386655530,1758451854282,-877.9,0.00021095,2]
[386655531,1758451854292,-480.0,0.00021095,2]
[386655532,1758451854302,-886.63,0.00021095,2]
[386655533,1758451854311,-496.89196208,0.00021095,2]
[386655534,1758451854321,-480.0,0.00021095,2]
[386655535,1758451854330,-1154.68,0.00021095,2]
[386655536,1758451854339,-480.0,0.00021095,2]
[386655537,1758451854349,-480.0,0.00021095,2]
[386655538,1758451854358,-480.0,0.00021095,2]
[386655539,1758451854368,-480.0,0.00021095,2]
[386655541,1758451854377,-480.0,0.00021095,2]
[386655543,1758451854387,-509.80161875,0.00021095,2]
[386655545,1758451854399,-428.30041284,0.00021095,2]
[386655547,1758451854409,-480.0,0.00021095,2]
[386655549,1758451854418,-10502.96,0.00021095,2]
[386655551,1758451854427,-586.27,0.00021095,2]
[386655553,1758451854437,-768.24,0.00021095,2]
[386655555,1758451854446,-480.0,0.00021095,2]
[386655556,1758451854455,-987.82,0.00021095,2]
[386655557,1758451854465,-214.65275827,0.00021095,2]
[386655558,1758451854475,-480.0,0.00021095,2]
[386655560,1758451854485,-480.0,0.00021095,2]
[386655561,1758451854495,-480.0,0.00021095,2]
[386655562,1758451854505,-530.61,0.00021095,2]
[386655563,1758451854514,-480.0,0.00021095,2]
[386655564,1758451854524,-1896.42,0.00021095,2]
[386655565,1758451854534,-480.0,0.00021095,2]
[386655566,1758451854543,-480.0,0.00021095,2]
[386655567,1758451854552,-480.0,0.00021095,2]
[386655568,1758451854562,-480.0,0.00021095,2]
[386655569,1758451854572,-480.0,0.00021095,2]
[386655570,1758451854582,-480.0,0.00021095,2]
[386655571,1758451854592,-970.28,0.00021095,2]
[386655572,1758451854602,-480.0,0.00021095,2]
[386655573,1758451854613,-519.16,0.00021095,2]
[386655574,1758451854623,-1102.68,0.00021095,2]
[386655575,1758451854633,-480.0,0.00021095,2]
[386655576,1758451854643,-480.0,0.00021095,2]
[386655577,1758451854653,-650.16,0.00021095,2]
[386655578,1758451854662,-864.96,0.00021095,2]
[386655579,1758451854671,-480.0,0.00021095,2]
[386655580,1758451854681,-515.02431158,0.00021095,2]
[386655581,1758451854690,-480.0,0.00021095,2]
[386655582,1758451854700,-480.0,0.00021095,2]
[386655583,1758451854710,-1211.94,0.00021095,2]
[386655584,1758451854719,-480.0,0.00021095,2]
[386655585,1758451854729,-500.0,0.00021096,2]
[386655586,1758451854740,-151.0,0.000211,4]
[386655587,1758451854750,-2014.68386253,0.00021116,2]
[386655588,1758451854760,-2000.0,0.00021116,2]
[386655589,1758451854769,-2000.0,0.00021116,2]
[386655590,1758451854779,-1500.0,0.00021116,2]
[386655591,1758451854789,-3620.83673457,0.00021209,2]
[386655592,1758451854798,-555.97489823,0.00021211,2]
[386655593,1758451854808,-4000.0,0.0002125,4]
[386655594,1758451854817,-500.0,0.00021274,2]
[386655595,1758451854827,-500.0,0.00021274,2]
[386655596,1758451854836,-500.0,0.00021274,2]
[386655597,1758451854846,-500.0,0.0002131,2]
[386655598,1758451854856,-500.0,0.0002131,2]
[386655599,1758451854866,-500.0,0.0002131,2]
[386655600,1758451854876,-501.06831998,0.0002131,2]
[386655601,1758451854885,-179.0,0.00021352,2]
[386655602,1758451854895,-1012.8132345,0.00021357,2]
[386655603,1758451854904,-480.0,0.00021369,2]
[386655604,1758451854915,-480.0,0.00021369,2]
[386655605,1758451854924,-480.0,0.00021369,2]
[386655606,1758451854933,-480.0,0.00021369,2]
[386655607,1758451854944,-480.0,0.00021369,2]
[386655608,1758451854958,-480.0,0.00021369,2]
[386655609,1758451854968,-480.0,0.00021369,2]
[386655610,1758451854977,-480.0,0.00021369,2]
[386655611,1758451854987,-480.0,0.00021369,2]
[386655612,1758451854997,-480.0,0.00021369,2]
[386655613,1758451855006,-480.0,0.00021369,2]
[386655614,1758451855016,-480.0,0.00021369,2]
[386655615,1758451855026,-480.0,0.00021369,2]
[386655616,1758451855035,-480.0,0.00021369,2]
[386655617,1758451855045,-480.0,0.00021369,2]
[386655618,1758451855054,-480.0,0.00021369,2]
[386655619,1758451855063,-480.0,0.00021369,2]
[386655620,1758451855073,-861.84,0.00021369,2]
[386655621,1758451855082,-935.99,0.00021369,2]
[386655622,1758451855092,-480.0,0.00021369,2]
[386655623,1758451855252,-530.57,0.00021369,2]
[386655624,1758451855262,-480.0,0.00021369,2]
[386655625,1758451855272,-1522.15,0.00021369,2]
[386655626,1758451855282,-480.0,0.00021369,2]
[386655627,1758451855293,-480.0,0.00021369,2]
[386655628,1758451855302,-1988.96,0.00021369,2]
[386655629,1758451855311,-480.0,0.00021369,2]
[386655630,1758451855321,-480.0,0.00021369,2]
[386655631,1758451855330,-480.0,0.00021369,2]
[386655632,1758451855340,-557.88,0.00021369,2]
[386655633,1758451855349,-1814.27,0.00021369,2]
[386655634,1758451855361,-480.0,0.00021369,2]
[386655635,1758451855371,-480.0,0.00021369,2]
[386655636,1758451855381,-852.0,0.00021369,2]
[386655637,1758451855391,-2934.94,0.00021369,2]
[386655638,1758451855400,-877.9,0.00021369,2]
[386655639,1758451855410,-480.0,0.00021369,2]
[386655640,1758451855419,-886.63,0.00021369,2]
[386655641,1758451855429,-463.23459873,0.00021369,2]
[386655642,1758451855439,-1154.68,0.00021369,2]
[386655644,1758451855449,-480.0,0.00021369,2]
[386655646,1758451855458,-403.80446147,0.00021369,2]
[386655648,1758451855468,-480.0,0.00021369,2]
[386655650,1758451855478,-480.0,0.00021369,2]
[386655651,1758451855490,-480.0,0.00021369,2]
[386655652,1758451855499,-480.0,0.00021369,2]
[386655653,1758451855509,-10502.96,0.00021369,2]
[386655654,1758451855519,-586.27,0.00021369,2]
[386655655,1758451855528,-768.24,0.00021369,2]
[386655656,1758451855538,-480.0,0.00021369,2]
[386655657,1758451855548,-987.82,0.00021369,2]
[386655658,1758451855558,-480.0,0.00021369,2]
[386655659,1758451855567,-480.0,0.00021369,2]
[386655660,1758451855577,-480.0,0.00021369,2]
[386655661,1758451855587,-530.61,0.00021369,2]
[386655662,1758451855597,-480.0,0.00021369,2]
[386655663,1758451855606,-1896.42,0.00021369,2]
[386655664,1758451855616,-480.0,0.00021369,2]
[386655665,1758451855625,-480.0,0.00021369,2]
[386655666,1758451855634,-480.0,0.00021369,2]
[386655667,1758451855643,-247.16066953,0.00021369,2]
[386655668,1758451855654,-480.0,0.00021369,2]
[386655669,1758451855663,-480.0,0.00021369,2]
[386655670,1758451855672,-970.28,0.00021369,2]
[386655671,1758451855681,-480.0,0.00021369,2]
[386655672,1758451855691,-519.16,0.00021369,2]
[386655673,1758451855700,-1102.68,0.00021369,2]
[386655674,1758451855710,-480.0,0.00021369,2]
[386655675,1758451855719,-480.0,0.00021369,2]
[386655676,1758451855728,-650.16,0.00021369,2]
[386655677,1758451855737,-864.96,0.00021369,2]
[386655678,1758451855746,-480.0,0.00021369,2]
[386655679,1758451855755,-480.0,0.00021369,2]
[386655680,1758451855765,-480.0,0.00021369,2]
[386655681,1758451855775,-1211.94,0.00021369,2]
[386655682,1758451855784,-480.0,0.00021369,2]
[386655683,1758451855794,-500.0,0.0002137,2]
[386655684,1758451855804,-179.0,0.00021371,2]
[386655685,1758451855813,-530.62166135,0.00021373,2]
[386655686,1758451855823,-1000.0,0.00021373,2]
[386655687,1758451855833,-500.0,0.00021373,2]
[386655688,1758451855844,-623.41079606,0.00021373,2]
[386655689,1758451855857,-500.0,0.00021373,2]
[386655690,1758451855867,-1000.0,0.00021376,2]
[386655691,1758451855876,-1000.0,0.00021376,2]
[386655692,1758451855887,-506.66059614,0.00021376,2]
[386655693,1758451855897,-257.58554608,0.00021376,2]
[386655694,1758451855906,-504.84368585,0.00021376,2]
[386655695,1758451855916,-501.98979774,0.00021376,2]
[386655696,1758451855926,-1000.0,0.00021376,2]
[386655697,1758451855936,-1000.0,0.00021376,2]
[386655698,1758451855945,-1005.97193109,0.00021376,2]
[386655699,1758451855955,-1000.0,0.00021376,2]
[386655700,1758451855964,-1000.0,0.00021376,2]
[386655701,1758451855974,-1000.0,0.00021376,2]
[386655702,1758451855984,-1000.0,0.00021376,2]
[386655703,1758451855994,-1000.0,0.00021376,2]
[386655704,1758451856004,-1000.0,0.00021376,2]
[386655705,1758451856014,-504.8841743,0.00021376,2]
[386655706,1758451856023,-1006.7026766,0.00021377,2]
[386655707,1758451856033,-1003.44169041,0.00021377,2]
[386655708,1758451856043,-1000.0,0.00021377,2]
[386655709,1758451856054,-1000.0,0.00021383,2]
[386655710,1758451856066,-1000.0,0.00021383,2]
[386655711,1758451856075,-500.0,0.00021383,2]
[386655712,1758451856085,-1000.0,0.00021383,2]
[386655713,1758451856094,-889.85371098,0.00021383,2]
[386655714,1758451856105,-1087.420753,0.00021384,2]
[386655715,1758451856115,-1000.0,0.00021384,2]
[386655716,1758451856125,-1000.0,0.00021384,2]
[386655717,1758451856136,-1000.0,0.00021384,2]
[386655718,1758451856145,-12015.11,0.00021392,2]
[386655719,1758451856155,-151.0,0.000214,4]
[386655720,1758451856165,-5000.0,0.00021458,2]
[386655721,1758451856174,-312.554536,0.00021501,2]
[386655722,1758451856183,-360.0,0.00021524,2]
[386655723,1758451856192,-500.0,0.00021548,2]
[386655724,1758451856202,-500.65471073,0.00021548,2]
[386655725,1758451856212,-500.0,0.00021548,2]
[386655726,1758451856222,-480.0,0.00021643,2]
[386655727,1758451856232,-480.0,0.00021643,2]
[386655728,1758451856242,-480.0,0.00021643,2]
[386655729,1758451856251,-480.0,0.00021643,2]
[386655730,1758451856261,-480.0,0.00021643,2]
[386655731,1758451856271,-480.0,0.00021643,2]
[386655732,1758451856280,-480.0,0.00021643,2]
[386655733,1758451856290,-480.0,0.00021643,2]
[386655734,1758451856299,-480.0,0.00021643,2]
[386655735,1758451856309,-480.0,0.00021643,2]
[386655736,1758451856318,-480.0,0.00021643,2]
[386655737,1758451856328,-480.0,0.00021643,2]
[386655738,1758451856338,-480.0,0.00021643,2]
[386655739,1758451856347,-480.0,0.00021643,2]
[386655740,1758451856358,-496.06124471,0.00021643,2]
[386655741,1758451856368,-480.0,0.00021643,2]
[386655742,1758451856378,-168.4007875,0.00021643,2]
[386655743,1758451856388,-861.84,0.00021643,2]
[386655744,1758451856398,-935.99,0.00021643,2]
[386655745,1758451856408,-480.0,0.00021643,2]
[386655746,1758451856417,-530.57,0.00021643,2]
[386655747,1758451856427,-480.0,0.00021643,2]
[386655748,1758451856436,-1522.15,0.00021643,2]
[386655749,1758451856446,-480.0,0.00021643,2]
[386655750,1758451856455,-480.0,0.00021643,2]
[386655751,1758451856465,-1988.96,0.00021643,2]
[386655752,1758451856475,-480.0,0.00021643,2]
[386655753,1758451856484,-480.0,0.00021643,2]
[386655754,1758451856494,-480.0,0.00021643,2]
[386655755,1758451856504,-557.88,0.00021643,2]
[386655756,1758451856514,-1814.27,0.00021643,2]
[386655757,1758451856524,-564.62008454,0.00021643,2]
[386655758,1758451856533,-480.0,0.00021643,2]
[386655759,1758451856542,-852.0,0.00021643,2]
[386655760,1758451856552,-2934.94,0.00021643,2]
[386655761,1758451856561,-877.9,0.00021643,2]
[386655762,1758451856570,-480.0,0.00021643,2]
[386655763,1758451856581,-886.63,0.00021643,2]
[386655764,1758451856590,-1154.68,0.00021643,2]
[386655765,1758451856599,-480.0,0.00021643,2]
[386655766,1758451856607,-480.0,0.00021643,2]
[386655767,1758451856616,-480.0,0.00021643,2]
[386655768,1758451856625,-480.0,0.00021643,2]
[386655769,1758451856634,-480.0,0.00021643,2]
[386655770,1758451856643,-10502.96,0.00021643,2]
[386655771,1758451856653,-586.27,0.00021643,2]
[386655772,1758451856662,-768.24,0.00021643,2]
[386655773,1758451856671,-480.0,0.00021643,2]
[386655774,1758451856680,-987.82,0.00021643,2]
[386655775,1758451856689,-480.0,0.00021643,2]
[386655776,1758451856698,-480.0,0.00021643,2]
[386655777,1758451856708,-480.0,0.00021643,2]
[386655778,1758451856717,-530.61,0.00021643,2]
[386655779,1758451856727,-480.0,0.00021643,2]
[386655780,1758451856737,-1896.42,0.00021643,2]
[386655781,1758451856746,-480.0,0.00021643,2]
[386655782,1758451856755,-480.0,0.00021643,2]
[386655783,1758451856764,-480.0,0.00021643,2]
[386655784,1758451856774,-480.0,0.00021643,2]
[386655785,1758451856783,-480.0,0.00021643,2]
[386655786,1758451856792,-970.28,0.00021643,2]
[386655787,1758451856801,-480.0,0.00021643,2]
[386655788,1758451856811,-519.16,0.00021643,2]
[386655789,1758451856821,-1102.68,0.00021643,2]
[386655790,1758451856830,-480.0,0.00021643,2]
[386655791,1758451856840,-480.0,0.00021643,2]
[386655792,1758451856849,-650.16,0.00021643,2]
[386655793,1758451856858,-151.0,0.00021643,2]
[386655794,1758451856868,-864.96,0.00021643,2]
[386655795,1758451856878,-480.0,0.00021643,2]
[386655796,1758451856887,-151.0,0.00021643,2]
[386655797,1758451856896,-151.0,0.00021643,2]
[386655798,1758451856905,-151.0,0.00021643,2]
[386655799,1758451856914,-151.0,0.00021643,2]
[386655800,1758451856924,-480.0,0.00021643,2]
[386655801,1758451856933,-151.0,0.00021643,2]
[386655802,1758451856943,-480.0,0.00021643,2]
[386655803,1758451856952,-151.0,0.00021643,2]
[386655804,1758451856962,-151.0,0.00021643,2]
[386655805,1758451856971,-373.155315,0.00021643,2]
[386655806,1758451856981,-373.155315,0.00021643,2]